fUST/lending_fUST_20250103
["ID","MTS","AMOUNT","RATE_DAILY","PERIOD"]
[347483697,1735865459288,-500.0,0.00019452,3]
[347483698,1735865459298,-500.0,0.00019452,3]
[347483699,1735865459308,-500.0,0.00019452,3]
[347483700,1735865459317,-1485.99,0.00019452,3]
[347483701,1735865459326,-500.0,0.00019452,3]
[347483702,1735865459335,-500.0,0.00019452,3]
[347483703,1735865459344,-525.14523659,0.00019452,3]
[347483704,1735865459354,-500.0,0.00019452,3]
[347483705,1735865459364,-500.0,0.00019452,3]
[347483706,1735865459373,-500.0,0.00019452,3]
[347483707,1735865459382,-566.03388386,0.00019452,3]
[347483708,1735865459393,-1254.69,0.00019452,3]
[347483709,1735865459402,-504.92317722,0.00019452,3]
[347483710,1735865459412,-500.0,0.00019452,3]
[347483711,1735865459421,-500.0,0.00019452,3]
[347483712,1735865459430,-500.0,0.00019452,3]
[347483713,1735865459440,-3113.88,0.00019452,3]
[347483714,1735865459449,-500.0,0.00019452,3]
[347483715,1735865459459,-1147.85,0.00019452,3]
[347483716,1735865459468,-500.0,0.00019452,3]
[347483717,1735865459478,-500.0,0.00019452,3]
[347483718,1735865459560,-500.0,0.00019452,3]
[347483719,1735865459570,-500.0,0.00019452,3]
[347483720,1735865459579,-500.0,0.00019452,3]
[347483721,1735865459588,-500.0,0.00019452,3]
[347483722,1735865459598,-500.0,0.00019452,3]
[347483723,1735865459607,-500.0,0.00019452,3]
[347483724,1735865459616,-500.0,0.00019452,3]
[347483725,1735865459625,-8775.59,0.00019452,3]
[347483726,1735865459636,-500.0,0.00019452,3]
[347483727,1735865459646,-500.0,0.00019452,3]
[347483728,1735865459655,-503.91869497,0.00019452,3]
[347483729,1735865459665,-500.0,0.00019452,3]
[347483730,1735865459674,-500.0,0.00019452,3]
[347483731,1735865459683,-500.0,0.00019452,3]
[347483732,1735865459693,-500.0,0.00019452,3]
[347483733,1735865459702,-501.79554441,0.00019452,3]
[347483734,1735865459711,-646.34,0.00019452,3]
[347483735,1735865459721,-2602.27,0.00019452,3]
[347483736,1735865459730,-500.0,0.00019452,3]
[347483737,1735865459740,-715.72,0.00019452,3]
[347483738,1735865459749,-200.0,0.00019452,3]
[347483739,1735865459758,-500.0,0.00019452,3]
[347483740,1735865459767,-162.78630853,0.00019452,3]
[347483741,1735865459777,-498.7019002,0.00019452,3]
[347483742,1735865459786,-500.0,0.00019452,3]
[347483743,1735865459795,-675.05,0.00019452,3]
[347483744,1735865459804,-500.0,0.00019452,3]
[347483745,1735865459814,-500.0,0.00019452,3]
[347483746,1735865459822,-500.0,0.00019452,3]
[347483747,1735865459832,-1326.66,0.00019452,3]
[347483748,1735865459841,-506.53766045,0.00019452,3]
[347483749,1735865459850,-500.0,0.00019452,3]
[347483750,1735865459859,-500.0,0.00019452,3]
[347483751,1735865459869,-1565.13,0.00019452,3]
[347483752,1735865459878,-500.0,0.00019452,3]
[347483753,1735865459888,-500.0,0.00019452,3]
[347483754,1735865459899,-753.35,0.00019452,3]
[347483755,1735865459908,-387.75910216,0.00019452,3]
[347483756,1735865459918,-500.0,0.00019452,3]
[347483757,1735865459928,-500.0,0.00019452,3]
[347483758,1735865459937,-1898.65358984,0.0001947,2]
[347483759,1735865459946,-500.0,0.00019473,2]
[347483760,1735865459955,-500.0,0.00019473,2]
[347483761,1735865459964,-438.82663102,0.00019473,2]
[347483762,1735865459974,-500.0,0.00019473,2]
[347483763,1735865459983,-500.0,0.00019473,2]
[347483764,1735865459992,-1000.0,0.00019721,2]
[347483765,1735865460002,-1000.0,0.00019721,2]
[347483766,1735865460012,-150.08,0.00019724,2]
[347483767,1735865460022,-199.94,0.00019724,2]
[347483768,1735865460032,-500.0,0.00019724,2]
[347483769,1735865460042,-199.94,0.00019724,2]
[347483770,1735865460052,-199.84,0.00019724,2]
[347483771,1735865460062,-199.84,0.00019724,2]
[347483772,1735865460072,-199.84,0.00019724,2]
[347483773,1735865460082,-150.08,0.00019724,2]
[347483774,1735865460092,-199.84,0.00019724,2]
[347483775,1735865460102,-500.0,0.00019726,3]
[347483776,1735865460111,-500.0,0.00019726,3]
[347483777,1735865460123,-500.0,0.00019726,3]
[347483778,1735865460132,-500.0,0.00019726,3]
[347483779,1735865460144,-500.0,0.00019726,3]
[347483780,1735865460154,-500.0,0.00019726,3]
[347483781,1735865460163,-500.0,0.00019726,3]
[347483782,1735865460173,-500.0,0.00019726,3]
[347483783,1735865460183,-518.81590967,0.00019726,3]
[347483784,1735865460195,-242.3878264,0.00019726,3]
[347483785,1735865460204,-500.0,0.00019726,3]
[347483786,1735865460214,-510.83626275,0.00019726,3]
[347483787,1735865460224,-188.0,0.00019726,2]
[347483788,1735865460234,-500.0,0.00019726,3]
[347483789,1735865460244,-500.0,0.00019726,3]
[347483790,1735865460253,-500.0,0.00019726,3]
[347483791,1735865460263,-500.0,0.00019726,3]
[347483792,1735865460272,-500.0,0.00019726,3]
[347483793,1735865460289,-500.0,0.00019726,3]
[347483794,1735865460299,-619.68565733,0.00019726,3]
[347483795,1735865460309,-651.65,0.00019726,3]
[347483796,1735865460319,-500.0,0.00019726,3]
[347483797,1735865460330,-500.0,0.00019726,3]
[347483798,1735865460340,-500.0,0.00019726,3]
[347483799,1735865460349,-500.0,0.00019726,3]
[347483800,1735865460359,-500.0,0.00019726,3]
[347483801,1735865460369,-500.0,0.00019726,2]
[347483802,1735865460379,-500.0,0.00019726,3]
[347483803,1735865460388,-500.0,0.00019726,3]
[347483804,1735865460398,-500.0,0.00019726,3]
[347483805,1735865460408,-500.0,0.00019726,3]
[347483806,1735865460417,-648.63611504,0.00019726,3]
[347483807,1735865460426,-500.0,0.00019726,3]
[347483808,1735865460436,-6883.64,0.00019726,3]
[347483809,1735865460445,-500.0,0.00019726,3]
[347483810,1735865460454,-500.0,0.00019726,3]
[347483811,1735865460463,-500.0,0.00019726,3]
[347483812,1735865460472,-500.0,0.00019726,3]
[347483813,1735865460481,-511.8308608,0.00019726,3]
[347483814,1735865460490,-431.27877542,0.00019726,3]
[347483815,1735865460499,-500.0,0.00019726,3]
[347483816,1735865460509,-500.0,0.00019726,3]
[347483817,1735865460519,-500.0,0.00019726,3]
[347483818,1735865460528,-500.0,0.00019726,3]
[347483819,1735865460537,-867.62,0.00019726,3]
[347483820,1735865460547,-500.0,0.00019726,3]
[347483821,1735865460557,-500.0,0.00019726,3]
[347483822,1735865460567,-500.0,0.00019726,3]
[347483823,1735865460636,-500.0,0.00019726,3]
[347483824,1735865460645,-500.0,0.00019726,3]
[347483825,1735865460655,-500.0,0.00019726,3]
[347483826,1735865460665,-387.23855346,0.00019726,3]
[347483827,1735865460674,-500.0,0.00019726,3]
[347483828,1735865460683,-500.0,0.00019726,3]
[347483829,1735865460692,-500.0,0.00019726,3]
[347483830,1735865460702,-500.0,0.00019726,3]
[347483831,1735865460712,-500.0,0.00019726,3]
[347483832,1735865460721,-500.0,0.00019726,3]
[347483833,1735865460730,-500.0,0.00019726,3]
[347483834,1735865460740,-500.0,0.00019726,3]
[347483835,1735865460749,-500.0,0.00019726,3]
[347483836,1735865460758,-500.0,0.00019726,3]
[347483837,1735865460767,-1404.47,0.00019726,2]
[347483838,1735865460776,-500.0,0.00019726,3]
[347483839,1735865460786,-500.0,0.00019726,3]
[347483840,1735865460795,-500.0,0.00019726,3]
[347483841,1735865460805,-500.0,0.00019726,3]
[347483842,1735865460814,-500.0,0.00019726,3]
[347483843,1735865460823,-506.19940868,0.00019726,3]
[347483844,1735865460833,-500.0,0.00019726,3]
[347483845,1735865460842,-500.0,0.00019726,3]
[347483846,1735865460851,-500.0,0.00019726,3]
[347483847,1735865460860,-500.0,0.00019726,3]
[347483848,1735865460870,-500.0,0.00019726,3]
[347483849,1735865460880,-500.0,0.00019726,3]
[347483850,1735865460892,-500.0,0.00019726,3]
[347483851,1735865460901,-500.0,0.00019726,3]
[347483852,1735865460911,-674.98,0.00019726,3]
[347483853,1735865460919,-500.0,0.00019726,3]
[347483854,1735865460928,-500.0,0.00019726,3]
[347483855,1735865460938,-751.5,0.00019726,3]
[347483856,1735865460947,-500.0,0.00019726,3]
[347483857,1735865460956,-500.0,0.00019726,3]
[347483858,1735865460965,-500.0,0.00019726,3]
[347483859,1735865460974,-500.0,0.00019726,3]
[347483860,1735865460984,-500.0,0.00019726,3]
[347483861,1735865460994,-1238.15,0.00019726,3]
[347483862,1735865461003,-500.0,0.00019726,3]
[347483863,1735865461012,-500.0,0.00019726,3]
[347483864,1735865461022,-500.0,0.00019726,3]
[347483865,1735865461031,-500.0,0.00019726,3]
[347483866,1735865461041,-500.0,0.00019726,3]
[347483867,1735865461050,-500.0,0.00019726,3]
[347483868,1735865461060,-500.0,0.00019726,3]
[347483869,1735865461069,-500.0,0.00019726,3]
[347483870,1735865461078,-500.0,0.00019726,3]
[347483871,1735865461088,-500.0,0.00019726,3]
[347483872,1735865461099,-500.0,0.00019726,3]
[347483873,1735865461118,-500.0,0.00019726,3]
[347483874,1735865461137,-500.0,0.00019726,3]
[347483875,1735865461157,-500.0,0.00019726,3]
[347483876,1735865461178,-500.0,0.00019726,3]
[347483877,1735865461197,-500.0,0.00019726,3]
[347483878,1735865461217,-500.0,0.00019726,3]
[347483879,1735865461236,-500.0,0.00019726,3]
[347483880,1735865461250,-558.9,0.00019726,3]
[347483881,1735865461270,-500.0,0.00019726,3]
[347483882,1735865461292,-500.0,0.00019726,3]
[347483883,1735865461307,-500.0,0.00019726,3]
[347483884,1735865461325,-500.0,0.00019726,3]
[347483885,1735865461342,-500.0,0.00019726,3]
[347483886,1735865461358,-500.0,0.00019726,3]
[347483887,1735865461371,-500.0,0.00019726,3]
[347483888,1735865461386,-500.0,0.00019726,3]
[347483889,1735865461404,-500.0,0.00019726,3]
[347483890,1735865461419,-500.0,0.00019726,3]
[347483891,1735865461434,-306.07942164,0.00019726,3]
[347483892,1735865461450,-500.0,0.00019726,3]
[347483893,1735865461465,-500.0,0.00019726,3]
[347483894,1735865461478,-500.0,0.00019726,3]
[347483895,1735865461493,-500.0,0.00019726,3]
[347483896,1735865461507,-500.0,0.00019726,3]
[347483897,1735865461521,-500.0,0.00019726,3]
[347483898,1735865461536,-504.47319099,0.00019726,3]
[347483899,1735865461551,-500.0,0.00019726,3]
[347483900,1735865461566,-500.0,0.00019726,3]
[347483901,1735865461581,-274.86546911,0.00019726,3]
[347483902,1735865461595,-927.13,0.00019726,3]
[347483903,1735865461610,-500.0,0.00019726,3]
[347483904,1735865461624,-500.0,0.00019726,3]
[347483905,1735865461642,-500.0,0.00019726,3]
[347483906,1735865461656,-668.6,0.00019726,3]
[347483907,1735865461672,-500.0,0.00019726,3]
[347483908,1735865461687,-500.0,0.00019726,3]
[347483909,1735865461701,-500.0,0.00019726,3]
[347483910,1735865461716,-500.0,0.00019726,3]
[347483911,1735865461730,-500.0,0.00019726,3]
[347483912,1735865461745,-500.0,0.00019726,3]
[347483913,1735865461759,-500.0,0.00019726,3]
[347483914,1735865461773,-500.0,0.00019726,3]
[347483915,1735865461788,-500.0,0.00019726,3]
[347483916,1735865461802,-500.0,0.00019726,3]
[347483917,1735865461817,-500.0,0.00019726,3]
[347483918,1735865461832,-500.0,0.00019726,3]
[347483919,1735865461846,-500.0,0.00019726,3]
[347483920,1735865461944,-1228.48,0.00019726,3]
[347483921,1735865461957,-509.64465727,0.00019726,3]
[347483922,1735865461966,-558.52,0.00019726,3]
[347483923,1735865461977,-500.0,0.00019726,3]
[347483924,1735865461987,-648.41,0.00019726,3]
[347483925,1735865461996,-500.0,0.00019726,3]
[347483926,1735865462005,-500.0,0.00019726,3]
[347483927,1735865462014,-500.0,0.00019726,3]
[347483928,1735865462024,-500.0,0.00019726,3]
[347483929,1735865462033,-500.0,0.00019726,3]
[347483930,1735865462044,-500.0,0.00019726,3]
[347483931,1735865462053,-500.0,0.00019726,3]
[347483932,1735865462062,-500.0,0.00019726,3]
[347483933,1735865462071,-500.0,0.00019726,3]
[347483934,1735865462080,-500.0,0.00019726,3]
[347483935,1735865462090,-500.0,0.00019726,3]
[347483936,1735865462099,-794.37,0.00019726,3]
[347483937,1735865462109,-500.0,0.00019726,3]
[347483938,1735865462118,-307.47656864,0.00019726,3]
[347483939,1735865462126,-500.0,0.00019726,3]
[347483940,1735865462135,-500.0,0.00019726,3]
[347483941,1735865462147,-500.0,0.00019726,3]
[347483942,1735865462155,-500.0,0.00019726,3]
[347483943,1735865462164,-1203.83,0.00019726,3]
[347483944,1735865462173,-747.13,0.00019726,3]
[347483945,1735865462182,-500.0,0.00019726,3]
[347483946,1735865462192,-500.0,0.00019726,3]
[347483947,1735865462201,-1399.61,0.00019726,3]
[347483948,1735865462211,-578.14861766,0.00019726,3]
[347483949,1735865462219,-500.0,0.00019726,3]
[347483950,1735865462228,-500.0,0.00019726,3]
[347483951,1735865462237,-500.0,0.00019726,3]
[347483952,1735865462247,-1160.34,0.00019726,3]
[347483953,1735865462257,-496.08295239,0.00019726,3]
[347483954,1735865462265,-500.0,0.00019726,3]
[347483955,1735865462274,-500.0,0.00019726,3]
[347483956,1735865462288,-500.0,0.00019726,3]
[347483957,1735865462302,-500.0,0.00019726,3]
[347483958,1735865462312,-500.0,0.00019726,3]
[347483959,1735865462322,-500.0,0.00019726,3]
[347483960,1735865462331,-500.0,0.00019726,3]
[347483961,1735865462340,-1535.13,0.00019726,3]
[347483962,1735865462351,-500.0,0.00019726,3]
[347483963,1735865462360,-507.89,0.00019726,3]
[347483964,1735865462369,-500.0,0.00019726,3]
[347483965,1735865462379,-500.0,0.00019726,3]
[347483966,1735865462388,-500.0,0.00019726,3]
[347483967,1735865462399,-602.12,0.00019726,3]
[347483968,1735865462409,-500.0,0.00019726,3]
[347483969,1735865462418,-500.0,0.00019726,3]
[347483970,1735865462427,-500.0,0.00019726,3]
[347483971,1735865462437,-500.0,0.00019726,3]
[347483972,1735865462446,-818.28,0.00019726,3]
[347483973,1735865462455,-813.6,0.00019726,3]
[347483974,1735865462465,-500.0,0.00019726,3]
[347483975,1735865462474,-997.9,0.00019726,3]
[347483976,1735865462483,-908.33,0.00019726,3]
[347483977,1735865462493,-500.0,0.00019726,3]
[347483978,1735865462501,-500.0,0.00019726,3]
[347483979,1735865462511,-507.07597233,0.00019726,3]
[347483980,1735865462520,-500.0,0.00019726,3]
[347483981,1735865462529,-2208.04,0.00019726,3]
[347483982,1735865462538,-841.06,0.00019726,3]
[347483983,1735865462548,-902.18,0.00019726,3]
[347483984,1735865462557,-500.0,0.00019726,3]
[347483985,1735865462566,-952.92,0.00019726,3]
[347483986,1735865462576,-839.21,0.00019726,3]
[347483987,1735865462585,-798.18,0.00019726,3]
[347483988,1735865462594,-754.24,0.00019726,3]
[347483989,1735865462604,-500.0,0.00019726,3]
[347483990,1735865462613,-2945.78,0.00019726,3]
[347483991,1735865462623,-500.0,0.00019726,3]
[347483992,1735865462632,-500.0,0.00019726,3]
[347483993,1735865462644,-500.0,0.00019726,3]
[347483994,1735865462653,-500.0,0.00019726,3]
[347483995,1735865462663,-4132.49,0.00019726,3]
[347483996,1735865462672,-500.0,0.00019726,3]
[347483997,1735865462681,-500.0,0.00019726,3]
[347483998,1735865462691,-500.0,0.00019726,3]
[347483999,1735865462700,-500.0,0.00019726,3]
[347484000,1735865462709,-500.0,0.00019726,3]
[347484001,1735865462718,-500.0,0.00019726,3]
[347484002,1735865462728,-500.0,0.00019726,3]
[347484003,1735865462737,-500.0,0.00019726,3]
[347484004,1735865462746,-500.0,0.00019726,3]
[347484005,1735865462755,-500.0,0.00019726,3]
[347484006,1735865462764,-500.0,0.00019726,3]
[347484007,1735865462773,-542.61,0.00019726,3]
[347484008,1735865462783,-1312.71,0.00019726,3]
[347484009,1735865462792,-500.0,0.00019726,3]
[347484010,1735865462802,-814.1,0.00019726,3]
[347484011,1735865462810,-500.0,0.00019726,3]
[347484012,1735865462820,-767.87,0.00019726,3]
[347484013,1735865462830,-500.0,0.00019726,3]
[347484014,1735865462840,-1593.75,0.00019726,3]
[347484015,1735865462849,-500.0,0.00019726,3]
[347484016,1735865462859,-16113.55,0.00019726,3]
[347484017,1735865462870,-500.0,0.00019726,3]
[347484018,1735865462880,-1706.84,0.00019726,3]
[347484019,1735865462891,-500.0,0.00019726,3]
[347484020,1735865462902,-500.0,0.00019726,3]
[347484021,1735865462912,-500.0,0.00019726,3]
[347484022,1735865462921,-500.0,0.00019726,3]
[347484023,1735865462930,-1249.55,0.00019726,3]
[347484024,1735865462939,-500.0,0.00019726,3]
[347484025,1735865462949,-500.0,0.00019726,3]
[347484026,1735865462958,-4152.27,0.00019726,3]
[347484027,1735865462967,-500.0,0.00019726,3]
[347484028,1735865462977,-33331.61,0.00019726,3]
[347484029,1735865462988,-500.0,0.00019726,3]
[347484030,1735865462999,-1037.19,0.00019726,3]
[347484031,1735865463008,-500.0,0.00019726,3]
[347484032,1735865463018,-500.0,0.00019726,3]
[347484033,1735865463028,-500.0,0.00019726,3]
[347484034,1735865463038,-402.26442889,0.00019726,3]
[347484035,1735865463048,-500.0,0.00019726,3]
[347484036,1735865463125,-500.0,0.00019726,3]
[347484037,1735865463137,-500.0,0.00019726,3]
[347484038,1735865463150,-904.46,0.00019726,3]
[347484039,1735865463160,-500.0,0.00019726,3]
[347484040,1735865463170,-2768.46,0.00019726,3]
[347484041,1735865463180,-1621.71,0.00019726,3]
[347484042,1735865463189,-825.82,0.00019726,3]
[347484043,1735865463199,-717.9,0.00019726,3]
[347484044,1735865463210,-500.0,0.00019726,3]
[347484045,1735865463220,-500.0,0.00019726,3]
[347484046,1735865463229,-500.0,0.00019726,3]
[347484047,1735865463239,-503.01303442,0.00019726,3]
[347484048,1735865463248,-500.0,0.00019726,3]
[347484049,1735865463258,-500.0,0.00019726,3]
[347484050,1735865463269,-500.0,0.00019726,3]
[347484051,1735865463279,-500.0,0.00019726,3]
[347484052,1735865463296,-500.0,0.00019726,3]
[347484053,1735865463306,-601.6277443,0.00019726,3]
[347484054,1735865463315,-500.0,0.00019726,3]
[347484055,1735865463326,-1485.99,0.00019726,3]
[347484056,1735865463336,-500.0,0.00019726,3]
[347484057,1735865463347,-500.0,0.00019726,3]
[347484058,1735865463356,-500.0,0.00019726,3]
[347484059,1735865463367,-500.0,0.00019726,3]
[347484060,1735865463377,-504.28325589,0.00019726,3]
[347484061,1735865463387,-1254.69,0.00019726,3]
[347484062,1735865463399,-504.22197509,0.00019726,3]
[347484063,1735865463408,-500.0,0.00019726,3]
[347484064,1735865463418,-3113.88,0.00019726,3]
[347484065,1735865463429,-504.01304985,0.00019726,3]
[347484066,1735865463439,-1147.85,0.00019726,3]
[347484067,1735865463448,-500.0,0.00019726,3]
[347484068,1735865463458,-500.0,0.00019726,3]
[347484069,1735865463467,-500.0,0.00019726,3]
[347484070,1735865463477,-500.0,0.00019726,3]
[347484071,1735865463486,-500.0,0.00019726,3]
[347484072,1735865463495,-500.0,0.00019726,3]
[347484073,1735865463505,-500.0,0.00019726,3]
[347484074,1735865463514,-487.2939958,0.00019726,3]
[347484075,1735865463523,-8775.59,0.00019726,3]
[347484076,1735865463533,-512.49163069,0.00019726,3]
[347484077,1735865463543,-500.0,0.00019726,3]
[347484078,1735865463552,-500.0,0.00019726,3]
[347484079,1735865463562,-500.0,0.00019726,3]
[347484080,1735865463571,-467.03768174,0.00019726,3]
[347484081,1735865463581,-500.0,0.00019726,3]
[347484082,1735865463591,-2602.27,0.00019726,3]
[347484083,1735865463600,-715.72,0.00019726,3]
[347484084,1735865463610,-200.0,0.00019726,3]
[347484085,1735865463620,-646.34,0.00019726,3]
[347484086,1735865463630,-500.0,0.00019726,3]
[347484087,1735865463639,-675.05,0.00019726,3]
[347484088,1735865463649,-500.0,0.00019726,3]
[347484089,1735865463658,-500.0,0.00019726,3]
[347484090,1735865463668,-500.0,0.00019726,3]
[347484091,1735865463677,-1326.66,0.00019726,3]
[347484092,1735865463687,-500.0,0.00019726,3]
[347484093,1735865463697,-500.0,0.00019726,3]
[347484094,1735865463706,-1565.13,0.00019726,3]
[347484095,1735865463716,-500.0,0.00019726,3]
[347484096,1735865463726,-500.0,0.00019726,3]
[347484097,1735865463735,-753.35,0.00019726,3]
[347484098,1735865463746,-500.0,0.00019726,3]
[347484099,1735865463755,-3560.48544256,0.000198,2]
[347484100,1735865463764,-3560.48544256,0.000198,2]
[347484101,1735865463773,-3560.48544256,0.000198,2]
[347484102,1735865463783,-3560.48544256,0.000198,2]
[347484103,1735865463792,-1898.65358984,0.00019864,2]
[347484104,1735865463802,-4052.47486979,0.000199,2]
[347484105,1735865463811,-485.9729856,0.00019997,2]
[347484106,1735865463821,-233.32320484,0.00019998,2]
[347484107,1735865463831,-500.0,0.00019998,2]
[347484108,1735865463840,-150.08,0.00019998,2]
[347484109,1735865463849,-686.83,0.0002,30]
[347484110,1735865463858,-150.0,0.0002,2]
[347484111,1735865463868,-12774.0,0.0002,2]
[347484112,1735865463878,-500.0,0.0002,3]
[347484113,1735865463887,-500.0,0.0002,3]
[347484114,1735865463898,-500.0,0.0002,3]
[347484115,1735865463908,-500.0,0.0002,3]
[347484116,1735865463917,-500.0,0.0002,3]
[347484117,1735865463927,-500.0,0.0002,3]
[347484118,1735865463937,-500.0,0.0002,3]
[347484119,1735865463946,-188.0,0.0002,2]
[347484120,1735865463955,-500.0,0.0002,3]
[347484121,1735865463964,-500.0,0.0002,3]
[347484122,1735865463974,-284.51823896,0.0002,3]
[347484123,1735865463983,-500.0,0.0002,3]
[347484124,1735865463992,-500.0,0.0002,3]
[347484125,1735865464001,-500.0,0.0002,3]
[347484126,1735865464011,-651.65,0.0002,3]
[347484127,1735865464020,-500.0,0.0002,3]
[347484128,1735865464029,-500.0,0.0002,3]
[347484129,1735865464038,-500.0,0.0002,3]
[347484130,1735865464047,-500.0,0.0002,3]
[347484131,1735865464056,-500.0,0.0002,3]
[347484132,1735865464066,-500.0,0.0002,2]
[347484133,1735865464075,-238.60448572,0.0002,3]
[347484134,1735865464084,-500.0,0.0002,3]
[347484135,1735865464093,-500.0,0.0002,3]
[347484136,1735865464102,-500.0,0.0002,3]
[347484137,1735865464112,-500.0,0.0002,3]
[347484138,1735865464121,-6883.64,0.0002,3]
[347484139,1735865464130,-184.3996074,0.0002,3]
[347484140,1735865464140,-500.0,0.0002,3]
[347484141,1735865464150,-500.0,0.0002,3]
[347484142,1735865464159,-500.0,0.0002,3]
[347484143,1735865464232,-500.0,0.0002,3]
[347484144,1735865464242,-587.06731227,0.0002,3]
[347484145,1735865464252,-500.0,0.0002,3]
[347484146,1735865464262,-867.62,0.0002,3]
[347484147,1735865464272,-500.0,0.0002,3]
[347484148,1735865464281,-380.38786708,0.0002,3]
[347484149,1735865464294,-500.0,0.0002,3]
[347484150,1735865464303,-500.0,0.0002,3]
[347484151,1735865464312,-500.0,0.0002,3]
[347484152,1735865464322,-500.0,0.0002,3]
[347484153,1735865464333,-500.0,0.0002,3]
[347484154,1735865464344,-500.0,0.0002,3]
[347484155,1735865464353,-500.0,0.0002,3]
[347484156,1735865464363,-500.0,0.0002,3]
[347484157,1735865464372,-284.81273788,0.0002,3]
[347484158,1735865464382,-500.0,0.0002,3]
[347484159,1735865464391,-500.0,0.0002,3]
[347484160,1735865464400,-508.61726724,0.0002,3]
[347484161,1735865464409,-500.0,0.0002,3]
[347484162,1735865464419,-1404.47,0.0002,2]
[347484163,1735865464429,-500.0,0.0002,3]
[347484164,1735865464439,-500.0,0.0002,3]
[347484165,1735865464448,-500.0,0.0002,3]
[347484166,1735865464457,-500.0,0.0002,3]
[347484167,1735865464467,-500.0,0.0002,3]
[347484168,1735865464477,-500.0,0.0002,3]
[347484169,1735865464486,-500.0,0.0002,3]
[347484170,1735865464496,-500.0,0.0002,3]
[347484171,1735865464505,-500.0,0.0002,3]
[347484172,1735865464514,-506.05334027,0.0002,3]
[347484173,1735865464523,-500.0,0.0002,3]
[347484174,1735865464532,-500.0,0.0002,3]
[347484175,1735865464542,-500.0,0.0002,3]
[347484176,1735865464551,-674.98,0.0002,3]
[347484177,1735865464560,-500.0,0.0002,3]
[347484178,1735865464569,-751.5,0.0002,3]
[347484179,1735865464578,-500.0,0.0002,3]
[347484180,1735865464587,-500.0,0.0002,3]
[347484181,1735865464596,-500.0,0.0002,3]
[347484182,1735865464606,-500.0,0.0002,3]
[347484183,1735865464615,-500.0,0.0002,3]
[347484184,1735865464625,-500.0,0.0002,3]
[347484185,1735865464635,-1238.15,0.0002,3]
[347484186,1735865464646,-500.0,0.0002,3]
[347484187,1735865464655,-500.0,0.0002,3]
[347484188,1735865464664,-500.0,0.0002,3]
[347484189,1735865464673,-500.0,0.0002,3]
[347484190,1735865464682,-500.0,0.0002,3]
[347484191,1735865464691,-500.0,0.0002,3]
[347484192,1735865464700,-500.0,0.0002,3]
[347484193,1735865464710,-500.0,0.0002,3]
[347484194,1735865464720,-500.0,0.0002,3]
[347484195,1735865464729,-500.0,0.0002,3]
[347484196,1735865464738,-295.72456444,0.0002,3]